[Event "Titled Tuesday Blitz November 07 Late 2023"]
[White "Ventura Bolet, Maxim"]
[Black "Rojas Alarcon, Julian Antonio"]
[WhiteFideId "22238824"]
[BlackFideId "5107407"]
[WhiteElo "2478"]
[BlackElo "2665"]
[Result "1-0"]
[Round "5"]
[TimeControl "180+1"]
[Date "2023.11.07"]
[WhiteClock "0:00:08"]
[BlackClock "0:00:29"]
[Board "65"]

1. e4 {[%clk 0:03:00]}  c5 {[%clk 0:02:56]} 2. Nf3 {[%clk 0:03:00]}  Nc6 {[%clk 0:02:56]} 3. d4 {[%clk 0:03:00]}  cxd4 {[%clk 0:02:56]} 4. Nxd4 {[%clk 0:03:01]}  Nf6 {[%clk 0:02:56]} 5. Nc3 {[%clk 0:03:01]}  e5 {[%clk 0:02:56]} 6. Ndb5 {[%clk 0:03:02]}  d6 {[%clk 0:02:56]} 7. Nd5 {[%clk 0:03:03]}  Nxd5 {[%clk 0:02:56]} 8. exd5 {[%clk 0:03:04]}  Nb8 {[%clk 0:02:56]} 9. a4 {[%clk 0:03:04]}  a6 {[%clk 0:02:57]} 10. Na3 {[%clk 0:03:04]}  Be7 {[%clk 0:02:57]} 11. Be2 {[%clk 0:03:05]}  Nd7 {[%clk 0:02:56]} 12. O-O {[%clk 0:03:03]}  O-O {[%clk 0:02:55]} 13. Be3 {[%clk 0:03:03]}  f5 {[%clk 0:02:53]} 14. f4 {[%clk 0:03:03]}  Nf6 {[%clk 0:02:52]} 15. Nc4 {[%clk 0:03:00]}  e4 {[%clk 0:02:37]} 16. Nb6 {[%clk 0:02:59]}  Rb8 {[%clk 0:02:36]} 17. a5 {[%clk 0:02:59]}  Bd7 {[%clk 0:02:36]} 18. c4 {[%clk 0:02:58]}  Be8 {[%clk 0:02:29]} 19. b4 {[%clk 0:02:56]}  Nd7 {[%clk 0:02:29]} 20. Rc1 {[%clk 0:02:45]}  Nxb6 {[%clk 0:02:21]} 21. Bxb6 {[%clk 0:02:46]}  Qd7 {[%clk 0:02:21]} 22. c5 {[%clk 0:02:38]}  Rc8 {[%clk 0:02:21]} 23. c6 {[%clk 0:02:34]}  bxc6 {[%clk 0:02:18]} 24. dxc6 {[%clk 0:02:32]}  Rxc6 {[%clk 0:02:18]} 25. Qd5+ {[%clk 0:02:28]}  Kh8 {[%clk 0:02:17]} 26. Bxa6 {[%clk 0:02:16]}  Rxb6 {[%clk 0:02:04]} 27. axb6 {[%clk 0:02:12]}  Qa4 {[%clk 0:02:04]} 28. b5 {[%clk 0:02:06]}  Bf7 {[%clk 0:01:56]} 29. Qd1 {[%clk 0:01:42]}  Bb3 {[%clk 0:01:55]} 30. Qd2 {[%clk 0:01:33]}  Bc4 {[%clk 0:01:50]} 31. b7 {[%clk 0:01:19]}  d5 {[%clk 0:01:45]} 32. Ra1 {[%clk 0:00:58]}  Qb3 {[%clk 0:01:37]} 33. Rfb1 {[%clk 0:00:58]}  Bc5+ {[%clk 0:01:32]} 34. Kh1 {[%clk 0:00:58]}  e3 {[%clk 0:01:24]} 35. Rxb3 {[%clk 0:00:46]}  exd2 {[%clk 0:01:23]} 36. Rbb1 {[%clk 0:00:33]}  Bd4 {[%clk 0:01:20]} 37. Ra3 {[%clk 0:00:09]}  Bc5 {[%clk 0:01:06]} 38. Raa1 {[%clk 0:00:08]}  Bd4 {[%clk 0:00:54]} 39. Ra3 {[%clk 0:00:08]}  Re8 {[%clk 0:00:54]} 40. h4 {[%clk 0:00:08]}  Ba7 {[%clk 0:00:47]} 41. Kh2 {[%clk 0:00:06]}  Re1 {[%clk 0:00:46]} 42. Raa1 {[%clk 0:00:06]}  Bg1+ {[%clk 0:00:41]} 43. Kh3 {[%clk 0:00:05]}  Re3+ {[%clk 0:00:41]} 44. g3 {[%clk 0:00:05]}  Re8 {[%clk 0:00:33]} 45. Rxg1 {[%clk 0:00:05]}  Bb3 {[%clk 0:00:33]} 46. Rgd1 {[%clk 0:00:05]}  Bxd1 {[%clk 0:00:32]} 47. Rxd1 {[%clk 0:00:05]}  h6 {[%clk 0:00:32]} 48. Rxd2 {[%clk 0:00:06]}  Kh7 {[%clk 0:00:33]} 49. Rxd5 {[%clk 0:00:06]}  Kg6 {[%clk 0:00:30]} 50. Rc5 {[%clk 0:00:05]}  Kh5 {[%clk 0:00:30]} 51. Rc8 {[%clk 0:00:03]}  Re2 {[%clk 0:00:29]} 52. b8=Q {[%clk 0:00:03]}  g6 {[%clk 0:00:29]} 53. Rh8 {[%clk 0:00:02]}  g5 {[%clk 0:00:25]} 54. Rxh6+ {[%clk 0:00:03]}  Kxh6 {[%clk 0:00:25]} 55. Qh8+ {[%clk 0:00:04]}  Kg6 {[%clk 0:00:25]} 56. Qg8+ {[%clk 0:00:04]}  Kh6 {[%clk 0:00:26]} 57. Qxg5+ {[%clk 0:00:05]}  Kh7 {[%clk 0:00:26]} 58. Qxf5+ {[%clk 0:00:05]}  Kh6 {[%clk 0:00:27]} 59. Qg5+ {[%clk 0:00:06]}  Kh7 {[%clk 0:00:27]} 60. b6 {[%clk 0:00:06]}  Rb2 {[%clk 0:00:25]} 61. Bd3+ {[%clk 0:00:06]}  Kh8 {[%clk 0:00:25]} 62. Qf6+ {[%clk 0:00:07]}  Kg8 {[%clk 0:00:26]} 63. Qxb2 {[%clk 0:00:07]}  Kf7 {[%clk 0:00:26]} 64. b7 {[%clk 0:00:07]}  Ke7 {[%clk 0:00:27]} 65. b8=Q {[%clk 0:00:07]}  Kd7 {[%clk 0:00:28]} 66. Qa7+ {[%clk 0:00:07]}  Ke6 {[%clk 0:00:28]} 67. Qbb6+ {[%clk 0:00:07]}  Kd5 {[%clk 0:00:29]} 68. Qaa5# {[%clk 0:00:08]} 1-0


[Site "https://www.chess.com"]

[Event "Titled Tuesday Blitz November 07 Late 2023"]
[White "Tokhirjonova, Gulrukhbegim"]
[Black "Kovacsy, Barnabas"]
[WhiteFideId "14203626"]
[BlackFideId "769290"]
[WhiteElo "2647"]
[BlackElo "2468"]
[Result "0-1"]
[Round "5"]
[TimeControl "180+1"]
[Date "2023.11.07"]
[WhiteClock "0:00:00"]
[BlackClock "0:00:42"]
[Board "66"]

1. Nf3 {[%clk 0:03:00]}  Nf6 {[%clk 0:02:53]} 2. c4 {[%clk 0:02:59]}  g6 {[%clk 0:02:53]} 3. Nc3 {[%clk 0:02:59]}  d5 {[%clk 0:02:53]} 4. cxd5 {[%clk 0:02:57]}  Nxd5 {[%clk 0:02:54]} 5. e4 {[%clk 0:02:57]}  Nxc3 {[%clk 0:02:50]} 6. bxc3 {[%clk 0:02:58]}  Bg7 {[%clk 0:02:49]} 7. d4 {[%clk 0:02:59]}  c5 {[%clk 0:02:49]} 8. Be3 {[%clk 0:02:58]}  O-O {[%clk 0:02:44]} 9. Qd2 {[%clk 0:02:53]}  cxd4 {[%clk 0:02:42]} 10. cxd4 {[%clk 0:02:53]}  Nc6 {[%clk 0:02:40]} 11. Be2 {[%clk 0:02:47]}  Bg4 {[%clk 0:02:40]} 12. Rd1 {[%clk 0:02:46]}  Bxf3 {[%clk 0:02:36]} 13. gxf3 {[%clk 0:02:41]}  Rc8 {[%clk 0:02:29]} 14. O-O {[%clk 0:02:35]}  e5 {[%clk 0:02:11]} 15. d5 {[%clk 0:02:02]}  Nd4 {[%clk 0:02:10]} 16. Bxd4 {[%clk 0:02:02]}  exd4 {[%clk 0:02:10]} 17. f4 {[%clk 0:02:02]}  Qh4 {[%clk 0:02:06]} 18. f3 {[%clk 0:01:42]}  Bh6 {[%clk 0:01:56]} 19. Qxd4 {[%clk 0:01:39]}  Bxf4 {[%clk 0:01:56]} 20. Qf2 {[%clk 0:01:39]}  Qxf2+ {[%clk 0:01:50]} 21. Kxf2 {[%clk 0:01:34]}  Bxh2 {[%clk 0:01:50]} 22. Ke3 {[%clk 0:01:31]}  g5 {[%clk 0:01:31]} 23. Bd3 {[%clk 0:01:21]}  f6 {[%clk 0:01:26]} 24. Rb1 {[%clk 0:01:15]}  Bf4+ {[%clk 0:01:21]} 25. Ke2 {[%clk 0:01:14]}  b6 {[%clk 0:01:20]} 26. Rh1 {[%clk 0:01:12]}  Rc7 {[%clk 0:01:17]} 27. a4 {[%clk 0:01:08]}  Re8 {[%clk 0:01:10]} 28. a5 {[%clk 0:01:04]}  bxa5 {[%clk 0:01:04]} 29. Rb5 {[%clk 0:01:04]}  a4 {[%clk 0:01:04]} 30. Ra1 {[%clk 0:01:03]}  h5 {[%clk 0:01:00]} 31. Rxa4 {[%clk 0:01:01]}  h4 {[%clk 0:00:57]} 32. Kf2 {[%clk 0:00:46]}  h3 {[%clk 0:00:52]} 33. Ra1 {[%clk 0:00:33]}  h2 {[%clk 0:00:51]} 34. Kg2 {[%clk 0:00:29]}  Be5 {[%clk 0:00:51]} 35. Rd1 {[%clk 0:00:28]}  Rc3 {[%clk 0:00:48]} 36. Rb7 {[%clk 0:00:25]}  Rec8 {[%clk 0:00:46]} 37. Rbb1 {[%clk 0:00:00]}  a5 {[%clk 0:00:42]} 0-1


[Site "https://www.chess.com"]

[Event "Titled Tuesday Blitz November 07 Late 2023"]
[White "Shuvalova, Polina"]
[Black "victormago"]
[WhiteFideId "24171760"]
[WhiteElo "2643"]
[BlackElo "2465"]
[Result "1-0"]
[Round "5"]
[TimeControl "180+1"]
[Date "2023.11.07"]
[WhiteClock "0:00:19"]
[BlackClock "0:00:16"]
[Board "67"]

1. Nf3 {[%clk 0:03:00]}  Nf6 {[%clk 0:02:53]} 2. c4 {[%clk 0:03:00]}  c5 {[%clk 0:02:47]} 3. g3 {[%clk 0:03:00]}  b6 {[%clk 0:02:48]} 4. Bg2 {[%clk 0:02:59]}  Bb7 {[%clk 0:02:48]} 5. O-O {[%clk 0:02:59]}  e6 {[%clk 0:02:48]} 6. b3 {[%clk 0:02:54]}  Be7 {[%clk 0:02:44]} 7. Bb2 {[%clk 0:02:54]}  d6 {[%clk 0:02:44]} 8. d4 {[%clk 0:02:55]}  cxd4 {[%clk 0:02:44]} 9. Qxd4 {[%clk 0:02:56]}  O-O {[%clk 0:02:40]} 10. Nc3 {[%clk 0:02:50]}  a6 {[%clk 0:02:39]} 11. Rad1 {[%clk 0:02:47]}  Nbd7 {[%clk 0:02:39]} 12. h4 {[%clk 0:02:29]}  Qc7 {[%clk 0:02:33]} 13. Qd2 {[%clk 0:02:08]}  Rfd8 {[%clk 0:02:27]} 14. Rfe1 {[%clk 0:02:01]}  Nc5 {[%clk 0:02:22]} 15. Qc2 {[%clk 0:01:56]}  Nce4 {[%clk 0:02:13]} 16. Ng5 {[%clk 0:01:47]}  Nxg5 {[%clk 0:02:03]} 17. hxg5 {[%clk 0:01:45]}  Nd7 {[%clk 0:02:00]} 18. f4 {[%clk 0:01:36]}  Bxg2 {[%clk 0:01:56]} 19. Kxg2 {[%clk 0:01:37]}  Rac8 {[%clk 0:01:52]} 20. Rh1 {[%clk 0:01:36]}  Nf8 {[%clk 0:01:52]} 21. a4 {[%clk 0:01:29]}  Qc6+ {[%clk 0:01:37]} 22. Qe4 {[%clk 0:01:27]}  Qxe4+ {[%clk 0:01:31]} 23. Nxe4 {[%clk 0:01:27]}  d5 {[%clk 0:01:30]} 24. cxd5 {[%clk 0:01:22]}  exd5 {[%clk 0:01:29]} 25. Nc3 {[%clk 0:01:21]}  d4 {[%clk 0:01:29]} 26. Ne4 {[%clk 0:01:20]}  Rc2 {[%clk 0:01:29]} 27. Rd2 {[%clk 0:01:20]}  Rxd2 {[%clk 0:01:23]} 28. Nxd2 {[%clk 0:01:21]}  d3 {[%clk 0:01:18]} 29. e4 {[%clk 0:01:18]}  Bb4 {[%clk 0:01:18]} 30. Rd1 {[%clk 0:01:13]}  Ne6 {[%clk 0:01:17]} 31. Kf3 {[%clk 0:01:09]}  Nc5 {[%clk 0:01:15]} 32. Ke3 {[%clk 0:01:02]}  Re8 {[%clk 0:01:07]} 33. e5 {[%clk 0:00:58]}  f6 {[%clk 0:01:07]} 34. gxf6 {[%clk 0:00:56]}  gxf6 {[%clk 0:01:07]} 35. Bd4 {[%clk 0:00:56]}  fxe5 {[%clk 0:01:04]} 36. Bxe5 {[%clk 0:00:48]}  Bxd2+ {[%clk 0:00:33]} 37. Rxd2 {[%clk 0:00:47]}  Nxb3 {[%clk 0:00:33]} 38. Rxd3 {[%clk 0:00:47]}  Nc5 {[%clk 0:00:34]} 39. Rd6 {[%clk 0:00:44]}  Nxa4 {[%clk 0:00:32]} 40. Rd7 {[%clk 0:00:44]}  h5 {[%clk 0:00:27]} 41. Rg7+ {[%clk 0:00:43]}  Kf8 {[%clk 0:00:28]} 42. Rh7 {[%clk 0:00:43]}  b5 {[%clk 0:00:24]} 43. Rxh5 {[%clk 0:00:41]}  b4 {[%clk 0:00:22]} 44. Rh8+ {[%clk 0:00:37]}  Kf7 {[%clk 0:00:21]} 45. Rh7+ {[%clk 0:00:37]}  Ke6 {[%clk 0:00:20]} 46. Ra7 {[%clk 0:00:29]}  Nc5 {[%clk 0:00:18]} 47. Kd4 {[%clk 0:00:29]}  Rc8 {[%clk 0:00:16]} 48. g4 {[%clk 0:00:19]}  b3 {[%clk 0:00:16]} 49. f5# {[%clk 0:00:19]} 1-0


[Site "https://www.chess.com"]

[Event "Titled Tuesday Blitz November 07 Late 2023"]
[White "Thomforde-Toates, Noah"]
[Black "szachmistrz2500"]
[WhiteFideId "30951992"]
[WhiteElo "2636"]
[BlackElo "2454"]
[Result "1-0"]
[Round "5"]
[TimeControl "180+1"]
[Date "2023.11.07"]
[WhiteClock "0:01:31"]
[BlackClock "0:00:57"]
[Board "69"]

1. d4 {[%clk 0:03:00]}  d5 {[%clk 0:02:59]} 2. Nc3 {[%clk 0:02:58]}  Nf6 {[%clk 0:02:57]} 3. Bf4 {[%clk 0:02:57]}  Bf5 {[%clk 0:02:51]} 4. f3 {[%clk 0:02:57]}  c6 {[%clk 0:02:48]} 5. g4 {[%clk 0:02:56]}  Bg6 {[%clk 0:02:48]} 6. h4 {[%clk 0:02:56]}  h5 {[%clk 0:02:45]} 7. g5 {[%clk 0:02:51]}  Nfd7 {[%clk 0:02:45]} 8. e4 {[%clk 0:02:50]}  e6 {[%clk 0:02:42]} 9. Bd3 {[%clk 0:02:49]}  Qb6 {[%clk 0:02:39]} 10. exd5 {[%clk 0:02:45]}  Bxd3 {[%clk 0:02:38]} 11. Qxd3 {[%clk 0:02:37]}  cxd5 {[%clk 0:02:33]} 12. g6 {[%clk 0:02:36]}  f6 {[%clk 0:02:31]} 13. Nge2 {[%clk 0:02:33]}  Nc6 {[%clk 0:02:26]} 14. O-O {[%clk 0:02:30]}  Nb4 {[%clk 0:02:14]} 15. Qd2 {[%clk 0:02:28]}  Bd6 {[%clk 0:02:14]} 16. a3 {[%clk 0:02:26]}  Na6 {[%clk 0:02:14]} 17. Rfe1 {[%clk 0:02:18]}  O-O-O {[%clk 0:02:13]} 18. b4 {[%clk 0:02:15]}  Nc7 {[%clk 0:02:01]} 19. Na4 {[%clk 0:02:10]}  Qc6 {[%clk 0:02:00]} 20. Nc5 {[%clk 0:02:09]}  Nxc5 {[%clk 0:01:56]} 21. bxc5 {[%clk 0:02:03]}  Bxf4 {[%clk 0:01:55]} 22. Nxf4 {[%clk 0:02:04]}  e5 {[%clk 0:01:54]} 23. dxe5 {[%clk 0:02:02]}  Qxc5+ {[%clk 0:01:54]} 24. Kg2 {[%clk 0:02:01]}  fxe5 {[%clk 0:01:50]} 25. Rxe5 {[%clk 0:02:00]}  Rhe8 {[%clk 0:01:44]} 26. Rae1 {[%clk 0:01:48]}  Rxe5 {[%clk 0:01:43]} 27. Rxe5 {[%clk 0:01:49]}  Qxa3 {[%clk 0:01:43]} 28. Nxh5 {[%clk 0:01:44]}  Qd6 {[%clk 0:01:38]} 29. Qg5 {[%clk 0:01:42]}  d4 {[%clk 0:01:16]} 30. Nxg7 {[%clk 0:01:39]}  Rg8 {[%clk 0:01:14]} 31. Nf5 {[%clk 0:01:33]}  Qxg6 {[%clk 0:00:57]} 32. Ne7+ {[%clk 0:01:31]} 1-0


[Site "https://www.chess.com"]

[Event "Titled Tuesday Blitz November 07 Late 2023"]
[White "Volkov, Maksim"]
[Black "Akhayan, Ruben"]
[WhiteFideId "54123070"]
[BlackFideId "204439"]
[WhiteElo "2635"]
[BlackElo "2446"]
[Result "1-0"]
[Round "5"]
[TimeControl "180+1"]
[Date "2023.11.07"]
[WhiteClock "0:01:51"]
[BlackClock "0:01:39"]
[Board "70"]

1. e4 {[%clk 0:03:00]}  e5 {[%clk 0:02:58]} 2. Nf3 {[%clk 0:03:00]}  Nc6 {[%clk 0:02:59]} 3. Bc4 {[%clk 0:03:01]}  Nf6 {[%clk 0:02:58]} 4. d3 {[%clk 0:03:01]}  Bc5 {[%clk 0:02:58]} 5. c3 {[%clk 0:03:01]}  d6 {[%clk 0:02:58]} 6. O-O {[%clk 0:03:01]}  a5 {[%clk 0:02:58]} 7. Nbd2 {[%clk 0:02:56]}  O-O {[%clk 0:02:58]} 8. h3 {[%clk 0:02:55]}  h6 {[%clk 0:02:56]} 9. Re1 {[%clk 0:02:54]}  Ba7 {[%clk 0:02:53]} 10. Nf1 {[%clk 0:02:52]}  Ne7 {[%clk 0:02:53]} 11. d4 {[%clk 0:02:49]}  Ng6 {[%clk 0:02:53]} 12. Ng3 {[%clk 0:02:47]}  Re8 {[%clk 0:02:50]} 13. Bb3 {[%clk 0:02:45]}  Be6 {[%clk 0:02:47]} 14. Be3 {[%clk 0:02:38]}  Qe7 {[%clk 0:02:24]} 15. a4 {[%clk 0:02:22]}  Nf4 {[%clk 0:02:11]} 16. Nf5 {[%clk 0:02:10]}  Bxf5 {[%clk 0:02:07]} 17. exf5 {[%clk 0:02:10]}  c6 {[%clk 0:01:58]} 18. Bxf4 {[%clk 0:02:08]}  Qd7 {[%clk 0:01:49]} 19. dxe5 {[%clk 0:02:05]}  Qxf5 {[%clk 0:01:48]} 20. Bg3 {[%clk 0:02:00]}  dxe5 {[%clk 0:01:46]} 21. Nxe5 {[%clk 0:01:53]}  Nh5 {[%clk 0:01:46]} 22. Bxf7+ {[%clk 0:01:52]}  Kh8 {[%clk 0:01:39]} 23. Qxh5 {[%clk 0:01:51]} 1-0


[Site "https://www.chess.com"]

[Event "Titled Tuesday Blitz November 07 Late 2023"]
[White "Mazurkiewicz, Michal"]
[Black "aghasiyevkamal"]
[WhiteFideId "1124943"]
[WhiteElo "2436"]
[BlackElo "2616"]
[Result "1-0"]
[Round "5"]
[TimeControl "180+1"]
[Date "2023.11.07"]
[WhiteClock "0:00:06"]
[BlackClock "0:01:21"]
[Board "73"]

1. e4 {[%clk 0:03:00]}  e5 {[%clk 0:02:59]} 2. Nf3 {[%clk 0:03:00]}  Nc6 {[%clk 0:02:59]} 3. Bb5 {[%clk 0:02:59]}  a6 {[%clk 0:02:59]} 4. Bxc6 {[%clk 0:02:59]}  dxc6 {[%clk 0:03:00]} 5. O-O {[%clk 0:02:59]}  Bd6 {[%clk 0:02:59]} 6. d4 {[%clk 0:02:58]}  exd4 {[%clk 0:02:59]} 7. Qxd4 {[%clk 0:02:59]}  f6 {[%clk 0:03:00]} 8. Nbd2 {[%clk 0:02:52]}  Be6 {[%clk 0:02:58]} 9. e5 {[%clk 0:02:18]}  fxe5 {[%clk 0:02:57]} 10. Nxe5 {[%clk 0:02:17]}  Nf6 {[%clk 0:02:56]} 11. Ndc4 {[%clk 0:02:14]}  O-O {[%clk 0:02:54]} 12. Nxd6 {[%clk 0:01:58]}  cxd6 {[%clk 0:02:48]} 13. Nf3 {[%clk 0:01:58]}  Bd5 {[%clk 0:02:46]} 14. Ne1 {[%clk 0:01:48]}  Re8 {[%clk 0:02:44]} 15. Bg5 {[%clk 0:01:43]}  Re5 {[%clk 0:02:44]} 16. f4 {[%clk 0:01:34]}  Re2 {[%clk 0:02:41]} 17. Bxf6 {[%clk 0:01:28]}  Qxf6 {[%clk 0:02:41]} 18. Qxf6 {[%clk 0:01:28]}  gxf6 {[%clk 0:02:42]} 19. Rf2 {[%clk 0:01:26]}  Re3 {[%clk 0:02:40]} 20. Nd3 {[%clk 0:01:14]}  Rae8 {[%clk 0:02:39]} 21. b3 {[%clk 0:00:36]}  a5 {[%clk 0:02:35]} 22. Kf1 {[%clk 0:00:29]}  a4 {[%clk 0:02:26]} 23. Re1 {[%clk 0:00:29]}  a3 {[%clk 0:02:08]} 24. Rxe3 {[%clk 0:00:25]}  Rxe3 {[%clk 0:02:08]} 25. g3 {[%clk 0:00:22]}  Bf3 {[%clk 0:02:05]} 26. Rd2 {[%clk 0:00:19]}  c5 {[%clk 0:02:02]} 27. Kf2 {[%clk 0:00:19]}  Rxd3 {[%clk 0:01:56]} 28. Rxd3 {[%clk 0:00:18]}  Be4 {[%clk 0:01:57]} 29. Rd2 {[%clk 0:00:15]}  d5 {[%clk 0:01:56]} 30. c3 {[%clk 0:00:14]}  f5 {[%clk 0:01:53]} 31. Ke3 {[%clk 0:00:14]}  Kf7 {[%clk 0:01:54]} 32. h3 {[%clk 0:00:14]}  h5 {[%clk 0:01:53]} 33. b4 {[%clk 0:00:10]}  b6 {[%clk 0:01:53]} 34. bxc5 {[%clk 0:00:10]}  bxc5 {[%clk 0:01:53]} 35. Rd1 {[%clk 0:00:10]}  Ke6 {[%clk 0:01:53]} 36. Rc1 {[%clk 0:00:10]}  Kd6 {[%clk 0:01:53]} 37. Rg1 {[%clk 0:00:09]}  Kc6 {[%clk 0:01:51]} 38. g4 {[%clk 0:00:09]}  hxg4 {[%clk 0:01:49]} 39. hxg4 {[%clk 0:00:10]}  fxg4 {[%clk 0:01:50]} 40. Rxg4 {[%clk 0:00:10]}  Kb5 {[%clk 0:01:51]} 41. Rg5 {[%clk 0:00:09]}  Kc4 {[%clk 0:01:50]} 42. Kd2 {[%clk 0:00:08]}  Bb1 {[%clk 0:01:47]} 43. f5 {[%clk 0:00:08]}  Bxa2 {[%clk 0:01:47]} 44. f6 {[%clk 0:00:09]}  Bb1 {[%clk 0:01:46]} 45. Kc1 {[%clk 0:00:08]}  Bd3 {[%clk 0:01:28]} 46. f7 {[%clk 0:00:05]}  Kxc3 {[%clk 0:01:27]} 47. Rg3 {[%clk 0:00:05]}  a2 {[%clk 0:01:24]} 48. Rxd3+ {[%clk 0:00:05]}  Kxd3 {[%clk 0:01:24]} 49. Kb2 {[%clk 0:00:06]}  c4 {[%clk 0:01:24]} 50. f8=Q {[%clk 0:00:06]}  c3+ {[%clk 0:01:21]} 51. Kxa2 {[%clk 0:00:06]} 1-0


[Site "https://www.chess.com"]

[Event "Titled Tuesday Blitz November 07 Late 2023"]
[White "Weisz, Bryan"]
[Black "GatoRojo150"]
[WhiteFideId "30934133"]
[WhiteElo "2433"]
[BlackElo "2614"]
[Result "1-0"]
[Round "5"]
[TimeControl "180+1"]
[Date "2023.11.07"]
[WhiteClock "0:00:38"]
[BlackClock "0:00:12"]
[Board "74"]

1. e4 {[%clk 0:03:00]}  e5 {[%clk 0:02:59]} 2. Bc4 {[%clk 0:02:57]}  Nf6 {[%clk 0:02:58]} 3. Nc3 {[%clk 0:02:51]}  Nxe4 {[%clk 0:02:58]} 4. Qh5 {[%clk 0:02:51]}  Nd6 {[%clk 0:02:58]} 5. Bb3 {[%clk 0:02:38]}  Nc6 {[%clk 0:02:58]} 6. Nb5 {[%clk 0:02:38]}  g6 {[%clk 0:02:58]} 7. Qf3 {[%clk 0:02:37]}  f5 {[%clk 0:02:58]} 8. Qd5 {[%clk 0:02:38]}  Qf6 {[%clk 0:02:57]} 9. Nxc7+ {[%clk 0:02:38]}  Kd8 {[%clk 0:02:58]} 10. Nxa8 {[%clk 0:02:39]}  b6 {[%clk 0:02:58]} 11. Nf3 {[%clk 0:02:25]}  Bb7 {[%clk 0:02:52]} 12. d4 {[%clk 0:02:22]}  Nxd4 {[%clk 0:02:40]} 13. Qxd4 {[%clk 0:00:46]}  Bxf3 {[%clk 0:02:24]} 14. Qa4 {[%clk 0:00:46]}  Bxa8 {[%clk 0:02:09]} 15. Qxa7 {[%clk 0:00:46]}  Bxg2 {[%clk 0:02:09]} 16. Qxb6+ {[%clk 0:00:44]}  Kc8 {[%clk 0:01:36]} 17. Rg1 {[%clk 0:00:39]}  Bb7 {[%clk 0:01:21]} 18. Bg5 {[%clk 0:00:39]}  Qg7 {[%clk 0:00:12]} 19. Qd8# {[%clk 0:00:38]} 1-0


[Site "https://www.chess.com"]

[Event "Titled Tuesday Blitz November 07 Late 2023"]
[White "ArtemDyachuk"]
[Black "Pace, Christopher"]
[BlackFideId "2610167"]
[WhiteElo "2613"]
[BlackElo "2432"]
[Result "1-0"]
[Round "5"]
[TimeControl "180+1"]
[Date "2023.11.07"]
[WhiteClock "0:02:28"]
[BlackClock "0:00:27"]
[Board "75"]

1. e4 {[%clk 0:03:00]}  e5 {[%clk 0:02:52]} 2. Nf3 {[%clk 0:02:59]}  Nc6 {[%clk 0:02:52]} 3. Bc4 {[%clk 0:02:55]}  Nf6 {[%clk 0:02:42]} 4. d3 {[%clk 0:02:54]}  Be7 {[%clk 0:02:39]} 5. O-O {[%clk 0:02:53]}  d6 {[%clk 0:02:39]} 6. c3 {[%clk 0:02:51]}  O-O {[%clk 0:02:39]} 7. h3 {[%clk 0:02:48]}  Na5 {[%clk 0:02:39]} 8. Bb5 {[%clk 0:02:46]}  a6 {[%clk 0:02:39]} 9. Ba4 {[%clk 0:02:44]}  b5 {[%clk 0:02:40]} 10. Bc2 {[%clk 0:02:41]}  c5 {[%clk 0:02:40]} 11. Nbd2 {[%clk 0:02:39]}  Qc7 {[%clk 0:02:39]} 12. Re1 {[%clk 0:02:38]}  Bd7 {[%clk 0:01:46]} 13. Nf1 {[%clk 0:02:37]}  Rfe8 {[%clk 0:01:42]} 14. Bg5 {[%clk 0:02:35]}  h6 {[%clk 0:01:34]} 15. Bh4 {[%clk 0:02:33]}  g5 {[%clk 0:01:34]} 16. Bg3 {[%clk 0:02:32]}  Bf8 {[%clk 0:01:25]} 17. Ne3 {[%clk 0:02:31]}  Rad8 {[%clk 0:01:20]} 18. d4 {[%clk 0:02:30]}  exd4 {[%clk 0:01:11]} 19. cxd4 {[%clk 0:02:29]}  Nxe4 {[%clk 0:00:27]} 20. Nd5 {[%clk 0:02:28]} 1-0


[Site "https://www.chess.com"]

[Event "Titled Tuesday Blitz November 07 Late 2023"]
[White "Makaraci, Tunahan"]
[Black "Kokoszczynski, Jan"]
[WhiteFideId "6356559"]
[BlackFideId "1174460"]
[WhiteElo "2432"]
[BlackElo "2605"]
[Result "0-1"]
[Round "5"]
[TimeControl "180+1"]
[Date "2023.11.07"]
[WhiteClock "0:00:00"]
[BlackClock "0:00:05"]
[Board "76"]

1. e4 {[%clk 0:03:00]}  c6 {[%clk 0:02:54]} 2. c4 {[%clk 0:03:00]}  d5 {[%clk 0:02:54]} 3. exd5 {[%clk 0:03:01]}  cxd5 {[%clk 0:02:54]} 4. cxd5 {[%clk 0:03:01]}  Nf6 {[%clk 0:02:54]} 5. Nc3 {[%clk 0:03:01]}  g6 {[%clk 0:02:54]} 6. Nf3 {[%clk 0:03:01]}  Bg7 {[%clk 0:02:54]} 7. d4 {[%clk 0:03:01]}  O-O {[%clk 0:02:54]} 8. h3 {[%clk 0:02:56]}  Nxd5 {[%clk 0:02:52]} 9. Bc4 {[%clk 0:02:56]}  Nb6 {[%clk 0:02:50]} 10. Bb3 {[%clk 0:02:55]}  Nc6 {[%clk 0:02:50]} 11. d5 {[%clk 0:02:55]}  Na5 {[%clk 0:02:46]} 12. O-O {[%clk 0:02:55]}  Nxb3 {[%clk 0:02:46]} 13. axb3 {[%clk 0:02:55]}  Nd7 {[%clk 0:02:24]} 14. Re1 {[%clk 0:02:53]}  Nf6 {[%clk 0:02:17]} 15. Be3 {[%clk 0:02:52]}  a6 {[%clk 0:02:16]} 16. Bc5 {[%clk 0:02:46]}  Re8 {[%clk 0:02:16]} 17. Qd2 {[%clk 0:02:36]}  Bf5 {[%clk 0:02:12]} 18. Rad1 {[%clk 0:02:31]}  Rc8 {[%clk 0:02:11]} 19. Bd4 {[%clk 0:02:29]}  Qd6 {[%clk 0:01:48]} 20. g4 {[%clk 0:02:25]}  Bd7 {[%clk 0:01:48]} 21. Be5 {[%clk 0:02:23]}  Qb6 {[%clk 0:01:47]} 22. d6 {[%clk 0:02:07]}  exd6 {[%clk 0:01:42]} 23. Qxd6 {[%clk 0:02:02]}  Qxd6 {[%clk 0:01:24]} 24. Rxd6 {[%clk 0:02:02]}  Be6 {[%clk 0:01:25]} 25. Nd4 {[%clk 0:01:47]}  Bf8 {[%clk 0:00:50]} 26. Rxe6 {[%clk 0:01:40]}  fxe6 {[%clk 0:00:43]} 27. Bxf6 {[%clk 0:01:39]}  e5 {[%clk 0:00:39]} 28. Rxe5 {[%clk 0:01:38]}  Kf7 {[%clk 0:00:32]} 29. g5 {[%clk 0:01:33]}  Rxe5 {[%clk 0:00:22]} 30. Bxe5 {[%clk 0:01:32]}  b5 {[%clk 0:00:23]} 31. Ne4 {[%clk 0:01:13]}  Rc1+ {[%clk 0:00:21]} 32. Kg2 {[%clk 0:01:13]}  Rd1 {[%clk 0:00:18]} 33. h4 {[%clk 0:00:49]}  Bb4 {[%clk 0:00:15]} 34. Nc2 {[%clk 0:00:47]}  Be7 {[%clk 0:00:13]} 35. Ne3 {[%clk 0:00:47]}  Rd3 {[%clk 0:00:12]} 36. Bc3 {[%clk 0:00:44]}  b4 {[%clk 0:00:12]} 37. Nc4 {[%clk 0:00:26]}  Ke6 {[%clk 0:00:06]} 38. Be1 {[%clk 0:00:12]}  Rxb3 {[%clk 0:00:06]} 39. f3 {[%clk 0:00:11]}  Rd3 {[%clk 0:00:05]} 40. Kf2 {[%clk 0:00:10]}  Rd5 {[%clk 0:00:04]} 41. Ke3 {[%clk 0:00:09]}  a5 {[%clk 0:00:04]} 42. Ncd2 {[%clk 0:00:07]}  a4 {[%clk 0:00:04]} 43. Nc4 {[%clk 0:00:06]}  a3 {[%clk 0:00:05]} 44. bxa3 {[%clk 0:00:07]}  bxa3 {[%clk 0:00:06]} 45. Nc3 {[%clk 0:00:04]}  Rc5 {[%clk 0:00:04]} 46. Kd4 {[%clk 0:00:03]}  Rc8 {[%clk 0:00:03]} 47. Na2 {[%clk 0:00:03]}  Rd8+ {[%clk 0:00:04]} 48. Kc3 {[%clk 0:00:03]}  Rd1 {[%clk 0:00:05]} 49. Bd2 {[%clk 0:00:03]}  Ra1 {[%clk 0:00:05]} 50. Kb3 {[%clk 0:00:03]}  Rh1 {[%clk 0:00:05]} 51. Bc3 {[%clk 0:00:04]}  Rxh4 {[%clk 0:00:06]} 52. Bd2 {[%clk 0:00:02]}  Rh3 {[%clk 0:00:05]} 53. Bc3 {[%clk 0:00:01]}  Rxf3 {[%clk 0:00:06]} 54. Nb4 {[%clk 0:00:02]}  Rh3 {[%clk 0:00:06]} 55. Nc6 {[%clk 0:00:02]}  h5 {[%clk 0:00:06]} 56. Nd4+ {[%clk 0:00:02]}  Kd7 {[%clk 0:00:06]} 57. Ne5+ {[%clk 0:00:02]}  Ke8 {[%clk 0:00:06]} 58. Nxg6 {[%clk 0:00:03]}  a2 {[%clk 0:00:05]} 59. Kxa2 {[%clk 0:00:02]}  Rxc3 {[%clk 0:00:05]} 60. Nf5 {[%clk 0:00:01]}  Bf8 {[%clk 0:00:05]} 61. Ne5 {[%clk 0:00:00]}  Rc5 {[%clk 0:00:05]} 0-1


[Site "https://www.chess.com"]